fUSD/lending_fUSD_20260611
["ID","MTS","AMOUNT","RATE_DAILY","PERIOD"]
[424822926,1781183446000,-1121.18,0.00016099,2]
[424822924,1781183446000,-166.66,0.00016062,2]
[424822922,1781183446000,-4049.3887762,0.00016,2]
[424822927,1781183446000,-660.37,0.00016099,2]
[424822928,1781183446000,-682.32218338,0.000161,2]
[424822930,1781183446000,-150.0,0.00016103,2]
[424822929,1781183446000,-150.0,0.00016103,2]
[424822932,1781183446000,-166.61154973,0.00016103,2]
[424822934,1781183446000,-184.85073511,0.00016103,2]
[424822933,1781183446000,-150.0,0.00016103,2]
[424822921,1781183446000,-1609.55327237,0.00015949,2]
[424822965,1781183446000,-900.0,0.00016438,2]
[424823014,1781183446000,-166.05435716,0.000184,2]
[424822967,1781183446000,-341.397837,0.00016438,2]
[424822994,1781183446000,-1865.36488656,0.00017397,2]
[424822996,1781183446000,-1935.0,0.00017808,2]
[424822999,1781183446000,-1934.38338736,0.00017945,2]
[424823003,1781183446000,-227.69822417,0.00018,2]
[424823002,1781183446000,-7884.3262389,0.00018,2]
[424823001,1781183446000,-443.20696805,0.00018,2]
[424823004,1781183446000,-640.0,0.00018,2]
[424823006,1781183446000,-166.05435716,0.000182,2]
[424823005,1781183446000,-249.0,0.00018156,2]
[424823007,1781183446000,-443.20696805,0.000182,2]
[424823010,1781183446000,-500.0,0.00018264,2]
[424823008,1781183446000,-500.0,0.00018264,2]
[424823000,1781183446000,-166.05435716,0.00018,2]
[424823011,1781183446000,-177.18834819,0.00018333,2]
[424823012,1781183446000,-2000.0,0.00018335,7]
[424823013,1781183446000,-80541.26,0.00018356,2]
[424823016,1781183446000,-231.12275904,0.000184,2]
[424823017,1781183446000,-231.12275902,0.000184,2]
[424823015,1781183446000,-443.20696805,0.000184,2]
[424823018,1781183446000,-231.12275902,0.000184,2]
[424823019,1781183446000,-2414.9,0.0001841,2]
[424823021,1781183446000,-200.0,0.00018493,2]
[424823022,1781183446000,-151.0,0.00018493,2]
[424823024,1781183446000,-151.0,0.00018493,2]
[424823023,1781183446000,-151.0,0.00018493,2]
[424822966,1781183446000,-341.397837,0.00016438,2]
[424823009,1781183446000,-528.86,0.00018264,2]
[424822997,1781183446000,-1125.0,0.00017861,2]
[424823020,1781183446000,-200.0,0.00018484,2]
[424822998,1781183446000,-1431.53,0.000179,2]
[424822995,1781183446000,-1600.0,0.000177,2]
[424822968,1781183446000,-341.397837,0.00016438,2]
[424822969,1781183446000,-341.397837,0.00016438,2]
[424822974,1781183446000,-168.91634944,0.00016462,2]
[424822971,1781183446000,-341.397837,0.00016438,2]
[424822970,1781183446000,-341.397837,0.00016438,2]
[424822976,1781183446000,-1609.55327237,0.00016476,2]
[424822972,1781183446000,-341.397837,0.00016438,2]
[424822975,1781183446000,-1900.54,0.00016474,2]
[424822978,1781183446000,-4049.3887762,0.000165,2]
[424822977,1781183446000,-1609.55327237,0.00016487,2]
[424822979,1781183446000,-1431.53,0.000165,2]
[424822980,1781183446000,-1609.55327237,0.00016513,2]
[424822973,1781183446000,-341.397837,0.00016438,2]
[424822982,1781183446000,-174.970979,0.00016645,2]
[424822993,1781183446000,-168.91634944,0.00017249,2]
[424822981,1781183446000,-166.66,0.0001653,2]
[424822992,1781183446000,-2340.0,0.00017149,2]
[424822989,1781183446000,-2937.82,0.00017099,2]
[424822990,1781183446000,-1121.18,0.00017099,2]
[424822984,1781183446000,-168.39,0.00016712,2]
[424822991,1781183446000,-660.37,0.00017099,2]
[424822987,1781183446000,-270.350648,0.00016845,2]
[424822988,1781183446000,-1798.80895522,0.00016849,2]
[424822986,1781183446000,-1077.36,0.00016771,2]
[424822985,1781183446000,-471.1,0.00016767,2]
[424822983,1781183446000,-4049.3887762,0.000167,2]
[424823052,1781183447000,-151.0,0.00018493,2]
[424823043,1781183447000,-151.0,0.00018493,2]
[424823048,1781183447000,-151.0,0.00018493,2]
[424823049,1781183447000,-500.0,0.00018493,2]
[424823051,1781183447000,-500.0,0.00018493,2]
[424823050,1781183447000,-151.0,0.00018493,2]
[424823047,1781183447000,-500.0,0.00018493,2]
[424823053,1781183447000,-151.0,0.00018493,2]
[424823058,1781183447000,-500.0,0.00018493,2]
[424823057,1781183447000,-151.0,0.00018493,2]
[424823055,1781183447000,-151.0,0.00018493,2]
[424823054,1781183447000,-151.0,0.00018493,2]
[424823059,1781183447000,-151.0,0.00018493,2]
[424823061,1781183447000,-500.0,0.00018493,2]
[424823045,1781183447000,-151.0,0.00018493,2]
[424823060,1781183447000,-151.0,0.00018493,2]
[424823056,1781183447000,-151.0,0.00018493,2]
[424823040,1781183447000,-151.0,0.00018493,2]
[424823033,1781183447000,-151.0,0.00018493,2]
[424823044,1781183447000,-500.0,0.00018493,2]
[424823062,1781183447000,-500.0,0.00018493,2]
[424823025,1781183447000,-151.0,0.00018493,2]
[424823026,1781183447000,-151.0,0.00018493,2]
[424823027,1781183447000,-151.0,0.00018493,2]
[424823029,1781183447000,-151.0,0.00018493,2]
[424823028,1781183447000,-151.0,0.00018493,2]
[424823031,1781183447000,-500.0,0.00018493,2]
[424823030,1781183447000,-151.0,0.00018493,2]
[424823032,1781183447000,-151.0,0.00018493,2]
[424823034,1781183447000,-500.0,0.00018493,2]
[424823035,1781183447000,-151.0,0.00018493,2]
[424823036,1781183447000,-151.0,0.00018493,2]
[424823037,1781183447000,-500.0,0.00018493,2]
[424823039,1781183447000,-2005.9555727,0.00018493,2]
[424823038,1781183447000,-151.0,0.00018493,2]
[424823041,1781183447000,-500.0,0.00018493,2]
[424823042,1781183447000,-151.0,0.00018493,2]
[424823046,1781183447000,-151.0,0.00018493,2]
[424823068,1781183447000,-443.20696805,0.000185,2]
[424823063,1781183447000,-151.0,0.00018493,2]
[424823069,1781183447000,-150.0,0.00018566,2]
[424823091,1781183447000,-1328.27659266,0.00018579,2]
[424823089,1781183447000,-445.19623703,0.00018579,2]
[424823090,1781183447000,-151.0,0.00018579,2]
[424823087,1781183447000,-201.93286098,0.00018579,2]
[424823092,1781183447000,-151.0,0.00018579,2]
[424823093,1781183447000,-500.0,0.00018579,2]
[424823096,1781183447000,-695.39793187,0.00018579,2]
[424823094,1781183447000,-152.0,0.00018579,2]
[424823088,1781183447000,-152.0,0.00018579,2]
[424823095,1781183447000,-201.93286098,0.00018579,2]
[424823105,1781183447000,-500.0,0.00018579,2]
[424823101,1781183447000,-152.0,0.00018579,2]
[424823097,1781183447000,-151.0,0.00018579,2]
[424823104,1781183447000,-1000.0,0.00018579,2]
[424823102,1781183447000,-161.46095509,0.00018579,2]
[424823103,1781183447000,-1428.38747117,0.00018579,2]
[424823100,1781183447000,-500.0,0.00018579,2]
[424823065,1781183447000,-151.0,0.00018493,2]
[424823098,1781183447000,-668.65185756,0.00018579,2]
[424823085,1781183447000,-174.61919141,0.00018579,2]
[424823099,1781183447000,-1377.42282658,0.00018579,2]
[424823084,1781183447000,-1235.18214925,0.00018579,2]
[424823086,1781183447000,-1280.88388877,0.00018579,2]
[424823066,1781183447000,-151.0,0.00018493,2]
[424823064,1781183447000,-500.0,0.00018493,2]
[424823067,1781183447000,-151.0,0.00018493,2]
[424823071,1781183447000,-1030.0,0.00018579,2]
[424823072,1781183447000,-151.0,0.00018579,2]
[424823073,1781183447000,-1068.11,0.00018579,2]
[424823074,1781183447000,-1107.63007,0.00018579,2]
[424823070,1781183447000,-153.0824764,0.00018579,2]
[424823075,1781183447000,-156.587,0.00018579,2]
[424823076,1781183447000,-154.12265554,0.00018579,2]
[424823077,1781183447000,-1148.61238259,0.00018579,2]
[424823078,1781183447000,-201.93286098,0.00018579,2]
[424823080,1781183447000,-170.9588958,0.00018579,2]
[424823079,1781183447000,-200.39203949,0.00018579,2]
[424823082,1781183447000,-1191.11104074,0.00018579,2]
[424823081,1781183447000,-578.20924308,0.00018579,2]
[424823083,1781183447000,-4680.56300297,0.00018579,2]
[424823148,1781183448000,-151.0,0.00018634,2]
[424823146,1781183448000,-4853.74383408,0.00018634,2]
[424823145,1781183448000,-640.0,0.00018626,2]
[424823143,1781183448000,-1980.8648231,0.00018579,2]
[424823144,1781183448000,-2054.15682156,0.00018579,2]
[424823133,1781183448000,-500.0,0.00018579,2]
[424823136,1781183448000,-152.0,0.00018579,2]
[424823142,1781183448000,-500.0,0.00018579,2]
[424823141,1781183448000,-1910.18787185,0.00018579,2]
[424823147,1781183448000,-445.19623703,0.00018634,2]
[424823138,1781183448000,-1842.0326633,0.00018579,2]
[424823139,1781183448000,-709.27370454,0.00018579,2]
[424823152,1781183448000,-151.0,0.00018689,2]
[424823157,1781183448000,-5219.56565311,0.00018744,2]
[424823150,1781183448000,-5033.33235594,0.00018689,2]
[424823149,1781183448000,-152.0,0.00018675,2]
[424823151,1781183448000,-445.19623703,0.00018689,2]
[424823164,1781183448000,-300.0,0.00018831,2]
[424823154,1781183448000,-300.0,0.00018689,2]
[424823156,1781183448000,-443.20696805,0.000187,2]
[424823155,1781183448000,-666.0,0.00018689,2]
[424823158,1781183448000,-445.19623703,0.00018744,2]
[424823159,1781183448000,-151.0,0.00018744,2]
[424823162,1781183448000,-151.0,0.00018799,2]
[424823160,1781183448000,-5412.68958227,0.00018799,2]
[424823161,1781183448000,-445.19623703,0.00018799,2]
[424823135,1781183448000,-1000.0,0.00018579,2]
[424823153,1781183448000,-300.0,0.00018689,2]
[424823137,1781183448000,-500.0,0.00018579,2]
[424823109,1781183448000,-1000.0,0.00018579,2]
[424823134,1781183448000,-1776.30922209,0.00018579,2]
[424823165,1781183448000,-377.99479175,0.00018831,2]
[424823106,1781183448000,-152.0,0.00018579,2]
[424823107,1781183448000,-201.93286098,0.00018579,2]
[424823113,1781183448000,-9211.34798984,0.00018579,2]
[424823112,1781183448000,-152.0,0.00018579,2]
[424823108,1781183448000,-500.0,0.00018579,2]
[424823114,1781183448000,-500.0,0.00018579,2]
[424823115,1781183448000,-1000.0,0.00018579,2]
[424823117,1781183448000,-152.0,0.00018579,2]
[424823116,1781183448000,-1536.04360648,0.00018579,2]
[424823111,1781183448000,-151.0,0.00018579,2]
[424823110,1781183448000,-1481.2378076,0.00018579,2]
[424823118,1781183448000,-500.0,0.00018579,2]
[424823120,1781183448000,-152.0,0.00018579,2]
[424823119,1781183448000,-1000.0,0.00018579,2]
[424823121,1781183448000,-1592.87721992,0.00018579,2]
[424823122,1781183448000,-500.0,0.00018579,2]
[424823127,1781183448000,-1000.0,0.00018579,2]
[424823123,1781183448000,-1000.0,0.00018579,2]
[424823128,1781183448000,-152.0,0.00018579,2]
[424823125,1781183448000,-500.0,0.00018579,2]
[424823126,1781183448000,-1651.81367706,0.00018579,2]
[424823124,1781183448000,-152.0,0.00018579,2]
[424823129,1781183448000,-500.0,0.00018579,2]
[424823131,1781183448000,-1000.0,0.00018579,2]
[424823130,1781183448000,-1712.93078311,0.00018579,2]
[424823132,1781183448000,-152.0,0.00018579,2]
[424823140,1781183448000,-152.0,0.00018579,2]
[424823166,1781183448000,-666.0,0.00018831,2]
[424823219,1781183448000,-300.0,0.00019238,2]
[424823167,1781183448000,-5612.95909682,0.00018854,2]
[424823199,1781183448000,-209.40437684,0.00019127,2]
[424823200,1781183448000,-170.9588958,0.00019127,2]
[424823203,1781183448000,-151.0,0.00019127,2]
[424823202,1781183448000,-209.40437684,0.00019127,2]
[424823201,1781183448000,-181.08010149,0.00019127,2]
[424823204,1781183448000,-278.69467455,0.00019127,2]
[424823205,1781183448000,-151.0,0.00019127,2]
[424823207,1781183448000,-9552.16786547,0.00019127,2]
[424823206,1781183448000,-693.39197629,0.00019127,2]
[424823208,1781183448000,-445.19623703,0.00019129,2]
[424823163,1781183448000,-1125.0,0.00018801,2]
[424823210,1781183448000,-300.0,0.00019138,2]
[424823214,1781183448000,-155.79619,0.00019178,2]
[424823212,1781183448000,-3000.0,0.00019178,2]
[424823211,1781183448000,-648.32862608,0.00019156,2]
[424823213,1781183448000,-160.93281423,0.00019178,7]
[424823216,1781183448000,-20470.89,0.00019178,2]
[424823215,1781183448000,-151.0,0.00019178,2]
[424823218,1781183448000,-151.0,0.00019184,2]
[424823217,1781183448000,-445.19623707,0.00019184,2]
[424823220,1781183448000,-151.0,0.00019239,2]
[424823224,1781183448000,-151.0,0.00019239,2]
[424823223,1781183448000,-151.0,0.00019239,2]
[424823221,1781183448000,-151.0,0.00019239,2]
[424823222,1781183448000,-151.0,0.00019239,2]
[424823225,1781183448000,-151.0,0.00019239,2]
[424823226,1781183448000,-151.0,0.00019239,2]
[424823198,1781183448000,-154.12265554,0.00019127,2]
[424823197,1781183448000,-151.0,0.00019074,2]
[424823209,1781183448000,-151.0,0.00019129,2]
[424823196,1781183448000,-445.19623703,0.00019074,2]
[424823168,1781183448000,-445.19623703,0.00018854,2]
[424823170,1781183448000,-200.96481895,0.00018886,2]
[424823195,1781183448000,-2080.17592889,0.00019041,2]
[424823169,1781183448000,-151.0,0.00018854,2]
[424823176,1781183448000,-3125.69869704,0.00019,2]
[424823178,1781183448000,-500.0,0.00019005,2]
[424823173,1781183448000,-151.0,0.00018909,2]
[424823175,1781183448000,-151.0,0.00018964,2]
[424823172,1781183448000,-445.19623703,0.00018909,2]
[424823174,1781183448000,-445.19623703,0.00018964,2]
[424823177,1781183448000,-500.0,0.00019005,2]
[424823180,1781183448000,-528.86,0.00019005,2]
[424823179,1781183448000,-500.0,0.00019005,2]
[424823171,1781183448000,-2452.13248053,0.00018909,2]
[424823183,1781183448000,-2937.82,0.00019005,2]
[424823181,1781183448000,-528.86,0.00019005,2]
[424823194,1781183448000,-151.0,0.00019041,2]
[424823193,1781183448000,-200.0,0.00019041,2]
[424823189,1781183448000,-500.0,0.00019005,2]
[424823190,1781183448000,-500.0,0.00019005,2]
[424823191,1781183448000,-445.19623703,0.00019019,2]
[424823192,1781183448000,-151.0,0.00019019,2]
[424823184,1781183448000,-2937.82,0.00019005,2]
[424823186,1781183448000,-1121.18,0.00019005,2]
[424823187,1781183448000,-660.37,0.00019005,2]
[424823185,1781183448000,-2937.82,0.00019005,2]
[424823188,1781183448000,-500.0,0.00019005,2]
[424823182,1781183448000,-528.86,0.00019005,2]
[424823242,1781183449000,-152.050253,0.00019239,2]
[424823241,1781183449000,-151.0,0.00019239,2]
[424823243,1781183449000,-1613.746151,0.00019239,2]
[424823245,1781183449000,-1613.746151,0.00019239,2]
[424823244,1781183449000,-1613.746151,0.00019239,2]
[424823248,1781183449000,-151.0,0.00019239,2]
[424823252,1781183449000,-341.397837,0.00019239,2]
[424823237,1781183449000,-151.0,0.00019239,2]
[424823247,1781183449000,-151.0,0.00019239,2]
[424823246,1781183449000,-1613.746151,0.00019239,2]
[424823238,1781183449000,-151.0,0.00019239,2]
[424823235,1781183449000,-151.0,0.00019239,2]
[424823239,1781183449000,-175.987358,0.00019239,2]
[424823240,1781183449000,-151.0,0.00019239,2]
[424823236,1781183449000,-151.0,0.00019239,2]
[424823234,1781183449000,-151.0,0.00019239,2]
[424823232,1781183449000,-151.0,0.00019239,2]
[424823231,1781183449000,-154.610542,0.00019239,2]
[424823230,1781183449000,-151.0,0.00019239,2]
[424823228,1781183449000,-151.0,0.00019239,2]
[424823229,1781183449000,-151.0,0.00019239,2]
[424823227,1781183449000,-151.0,0.00019239,2]
[424823249,1781183449000,-341.397837,0.00019239,2]
[424823233,1781183449000,-151.0,0.00019239,2]
[424823250,1781183449000,-341.397837,0.00019239,2]
[424823261,1781183449000,-151.0,0.00019339,2]
[424823251,1781183449000,-341.397837,0.00019239,2]
[424823253,1781183449000,-640.0,0.00019253,3]
[424823276,1781183449000,-300.0,0.00019499,2]
[424823277,1781183449000,-105630.59840556,0.000195,2]
[424823271,1781183449000,-1613.746151,0.00019339,2]
[424823272,1781183449000,-1613.746151,0.00019339,2]
[424823275,1781183449000,-1600.0,0.00019471,2]
[424823273,1781183449000,-300.778636,0.00019339,2]
[424823270,1781183449000,-1613.746151,0.00019339,2]
[424823269,1781183449000,-1613.746151,0.00019339,2]
[424823267,1781183449000,-151.0,0.00019339,2]
[424823268,1781183449000,-151.0,0.00019339,2]
[424823274,1781183449000,-150.0,0.000194,7]
[424823266,1781183449000,-159.968287,0.00019339,2]
[424823265,1781183449000,-151.0,0.00019339,2]
[424823255,1781183449000,-2937.82,0.00019338,2]
[424823254,1781183449000,-1431.53,0.000193,2]
[424823256,1781183449000,-300.0,0.00019338,2]
[424823260,1781183449000,-151.0,0.00019339,2]
[424823257,1781183449000,-100000.0,0.00019339,7]
[424823263,1781183449000,-290.437263,0.00019339,2]
[424823258,1781183449000,-151.0,0.00019339,2]
[424823262,1781183449000,-151.0,0.00019339,2]
[424823264,1781183449000,-151.0,0.00019339,2]
[424823259,1781183449000,-151.0,0.00019339,2]
[424823294,1781183450000,-1125.0,0.00019791,2]
[424823287,1781183450000,-187.78006524,0.00019675,2]
[424823302,1781183450000,-300.0,0.00019999,2]
[424823293,1781183450000,-151.42762908,0.00019726,2]
[424823292,1781183450000,-9905.59807649,0.00019675,2]
[424823288,1781183450000,-217.15233878,0.00019675,2]
[424823290,1781183450000,-151.0,0.00019675,2]
[424823289,1781183450000,-151.0,0.00019675,2]
[424823281,1781183450000,-104.89910808,0.00019589,2]
[424823285,1781183450000,-217.15233878,0.00019675,2]
[424823284,1781183450000,-154.12265554,0.00019675,2]
[424823282,1781183450000,-46.10089192,0.00019589,2]
[424823283,1781183450000,-2157.14243826,0.00019589,2]
[424823280,1781183450000,-200.0,0.00019589,2]
[424823278,1781183450000,-20517.44775846,0.000195,2]
[424823279,1781183450000,-504.26,0.00019559,2]
[424823301,1781183450000,-660.37,0.00019998,2]
[424823286,1781183450000,-170.9588958,0.00019675,2]
[424823295,1781183450000,-640.0,0.00019879,3]
[424823291,1781183450000,-483.14966213,0.00019675,2]
[424823296,1781183450000,-600.0,0.000199,7]
[424823299,1781183450000,-209.40437684,0.00019948,2]
[424823317,1781183450000,-500.0,0.00013698,2]
[424823316,1781183450000,-58111.42263103,0.0002,2]
[424823314,1781183450000,-500.0,0.00019999,2]
[424823311,1781183450000,-660.37,0.00019999,2]
[424823315,1781183450000,-661.72841598,0.0002,2]
[424823312,1781183450000,-660.37,0.00019999,2]
[424823306,1781183450000,-528.86,0.00019999,2]
[424823308,1781183450000,-2937.82,0.00019999,2]
[424823309,1781183450000,-1121.18,0.00019999,2]
[424823318,1781183450000,-2696.0,0.0002,2]
[424823313,1781183450000,-500.0,0.00019999,2]
[424823307,1781183450000,-2937.82,0.00019999,2]
[424823305,1781183450000,-528.86,0.00019999,2]
[424823304,1781183450000,-500.0,0.00019999,2]
[424823303,1781183450000,-500.0,0.00019999,2]
[424823297,1781183450000,-225.292207,0.00019908,2]
[424823310,1781183450000,-1121.18,0.00019999,2]
[424823298,1781183450000,-954.36951747,0.00019912,2]
[424823300,1781183450000,-1121.18,0.00019998,2]
[424823337,1781183451000,-190.35963914,0.0002,2]
[424823342,1781183451000,-551.0,0.0002,2]
[424823341,1781183451000,-190.35963915,0.0002,2]
[424823343,1781183451000,-436.0,0.0002,2]
[424823344,1781183451000,-1577.0,0.0002,2]
[424823346,1781183451000,-589.0,0.0002,2]
[424823345,1781183451000,-571.0,0.0002,2]
[424823347,1781183451000,-1865.0,0.0002,2]
[424823351,1781183451000,-541.0,0.0002,2]
[424823350,1781183451000,-360.0,0.0002,2]
[424823348,1781183451000,-432.0,0.0002,2]
[424823352,1781183451000,-596.0,0.0002,2]
[424823354,1781183451000,-476.0,0.0002,2]
[424823353,1781183451000,-7016.0,0.0002,2]
[424823338,1781183451000,-190.35963914,0.0002,2]
[424823355,1781183451000,-6361.83,0.0002,2]
[424823349,1781183451000,-798.0,0.0002,2]
[424823336,1781183451000,-2562.0,0.0002,2]
[424823326,1781183451000,-139192.57736897,0.0002,2]
[424823334,1781183451000,-23191.93504237,0.0002,20]
[424823358,1781183451000,-151.0,0.00020137,2]
[424823319,1781183451000,-160.0,0.00011723,2]
[424823320,1781183451000,-500.0,0.00013698,2]
[424823321,1781183451000,-102.45,0.00013698,2]
[424823322,1781183451000,-397.55,0.00013698,2]
[424823323,1781183451000,-500.0,0.00013698,2]
[424823325,1781183451000,-632.22545111,0.00013698,2]
[424823340,1781183451000,-190.35963914,0.0002,2]
[424823324,1781183451000,-500.0,0.00013698,2]
[424823327,1781183451000,-8725.0,0.0002,2]
[424823328,1781183451000,-26173.53,0.0002,2]
[424823332,1781183451000,-206605.0,0.0002,2]
[424823331,1781183451000,-1495.80637961,0.0002,5]
[424823333,1781183451000,-10000.0,0.0002,2]
[424823335,1781183451000,-2102.38645,0.0002,2]
[424823339,1781183451000,-190.35963914,0.0002,2]
[424823329,1781183451000,-12942.03,0.0002,2]
[424823356,1781183451000,-1755.0,0.0002,2]
[424823330,1781183451000,-297.99,0.0002,2]
[424823359,1781183451000,-2236.95670847,0.00020137,2]
[424823385,1781183451000,-2000.0,0.00020666,2]
[424823380,1781183451000,-150.0,0.0002058,2]
[424823379,1781183451000,-150.0,0.0002058,2]
[424823383,1781183451000,-168.39,0.00020639,2]
[424823381,1781183451000,-151.29325014,0.0002058,2]
[424823387,1781183451000,-33277.9515,0.00020666,2]
[424823386,1781183451000,-10308.5314,0.00020666,2]
[424823382,1781183451000,-661.72841598,0.000206,2]
[424823388,1781183451000,-200.0,0.00020685,2]
[424823389,1781183451000,-151.0,0.00020685,2]
[424823391,1781183451000,-500.0,0.00020695,2]
[424823392,1781183451000,-500.0,0.00020695,2]
[424823393,1781183451000,-500.0,0.00020695,2]
[424823395,1781183451000,-151.0,0.00020763,2]
[424823394,1781183451000,-250.0,0.000207,7]
[424823363,1781183451000,-170.9588958,0.00020223,2]
[424823390,1781183451000,-2319.72410669,0.00020685,2]
[424823384,1781183451000,-300.0,0.00020665,2]
[424823396,1781183451000,-9720.66187561,0.00020766,2]
[424823377,1781183451000,-150.0,0.00020566,2]
[424823362,1781183451000,-225.18697532,0.00020223,2]
[424823360,1781183451000,-661.72841598,0.000202,2]
[424823361,1781183451000,-154.12265554,0.00020223,2]
[424823357,1781183451000,-200.0,0.00020137,2]
[424823364,1781183451000,-194.72792766,0.00020223,2]
[424823367,1781183451000,-151.0,0.00020223,2]
[424823366,1781183451000,-151.0,0.00020223,2]
[424823373,1781183451000,-174.970979,0.00020486,2]
[424823365,1781183451000,-225.18697532,0.00020223,2]
[424823370,1781183451000,-2414.9,0.00020381,2]
[424823368,1781183451000,-1367.87611253,0.00020223,2]
[424823369,1781183451000,-332.960941,0.00020313,2]
[424823372,1781183451000,-781.225,0.00020421,2]
[424823371,1781183451000,-661.72841598,0.000204,2]
[424823375,1781183451000,-168.52,0.000205,2]
[424823376,1781183451000,-640.0,0.00020505,4]
[424823374,1781183451000,-550.807029,0.00020486,2]
[424823378,1781183451000,-150.0,0.00020566,2]
[424823397,1781183452000,-1029.5974199,0.00020766,2]
[424823402,1781183453000,-159605.82487519,0.00020766,2]
[424823400,1781183453000,-166.68,0.00017063,2]
[424823401,1781183453000,-29.91551802,0.00020766,2]
[424823399,1781183453000,-166.68,0.00014646,2]
[424823398,1781183453000,-454.30146,0.00010877,2]
[424823426,1781184548000,-1900.54,7.603e-05,2]
[424823428,1781184548000,-150.0,7.944e-05,2]
[424823427,1781184548000,-266.51,7.943e-05,2]
[424823430,1781184548000,-923.127193,7.948e-05,2]
[424823429,1781184548000,-1632.442881,7.945e-05,2]
[424823434,1781184581000,-676.46908537,7.948e-05,2]
[424823435,1781184581000,-638.40892735,7.948e-05,2]
[424823433,1781184581000,-290.00372163,7.948e-05,2]
[424823432,1781184581000,-166.66,7.927e-05,2]
[424823431,1781184581000,-2802.59,7.594e-05,2]
[424823437,1781184631000,-150.0,8.024e-05,2]
[424823436,1781184631000,-1257.79416935,7.948e-05,2]
[424823438,1781184631000,-150.0,8.103e-05,2]
[424823439,1781184631000,-150.0,8.183e-05,2]
[424823440,1781184631000,-166.66,8.189e-05,2]
[424823441,1781184631000,-2000.0,8.219e-05,2]
[424823446,1781184631000,-1769.35583065,8.262e-05,2]
[424823443,1781184631000,-2356.99533486,8.219e-05,2]
[424823445,1781184631000,-145.91777015,8.262e-05,2]
[424823444,1781184631000,-4.08222985,8.262e-05,2]
[424823447,1781184631000,-3765.97484225,8.262e-05,2]
[424823448,1781184631000,-753.61719823,8.262e-05,2]
[424823442,1781184631000,-1349.19466514,8.219e-05,2]
[424823449,1781184632000,-330.20217475,8.262e-05,2]
[424823450,1781184632000,-1267.11995351,8.262e-05,2]
[424823458,1781184632000,-1586.26738872,8.262e-05,2]
[424823463,1781184632000,-150.99,8.325e-05,2]
[424823459,1781184632000,-527.45261189,8.262e-05,2]
[424823462,1781184632000,-150.0,8.325e-05,2]
[424823461,1781184632000,-366.10383239,8.271e-05,2]
[424823464,1781184632000,-299.99,8.326e-05,2]
[424823460,1781184632000,-68.07616761,8.271e-05,2]
[424823466,1781184632000,-1195.78683325,8.326e-05,2]
[424823468,1781184632000,-150.0,8.341e-05,2]
[424823467,1781184632000,-3545.05073056,8.326e-05,2]
[424823469,1781184632000,-403.27,8.382e-05,2]
[424823471,1781184632000,-166.66,8.45e-05,2]
[424823470,1781184632000,-230.0,8.421e-05,2]
[424823472,1781184632000,-571.81885206,8.541e-05,2]
[424823473,1781184632000,-2726.52883703,8.541e-05,2]
[424823465,1781184632000,-5259.15243619,8.326e-05,2]
[424823477,1781184637000,-408.79479283,8.54e-05,2]
[424823478,1781184637000,-141.07520717,8.54e-05,2]
[424823479,1781184637000,-485.10233314,8.54e-05,2]
[424823480,1781184637000,-500.0,8.54e-05,2]
[424823485,1781184637000,-500.0,8.54e-05,2]
[424823491,1781184637000,-443.14519982,8.54e-05,2]
[424823482,1781184637000,-500.0,8.54e-05,2]
[424823484,1781184637000,-500.0,8.54e-05,2]
[424823483,1781184637000,-500.0,8.54e-05,2]
[424823481,1781184637000,-507.94519685,8.54e-05,2]